bitfinex/quotes_ETHUSD_20220310
["timestamp","ask_amount","ask_price","bid_price","bid_amount"]
[1646909973494,1.04276732,2593.5,2593.4,0.92872]
[1646909973690,1.08993879,2593.5,2593.4,0.92872]
[1646909974090,0.73148818,2593.5,2593.4,0.92872]
[1646909974840,0.75457734,2593.5,2593.4,0.92872]
[1646909975038,0.75457734,2593.5,2593.4,1.48172]
[1646909975440,0.75457734,2593.5,2593.4,2.43537994]
[1646909976244,0.75457734,2593.5,2593.4,1.48172]
[1646909976446,0.75457734,2593.5,2593.4,0.48172]
[1646909977045,0.07026063,2593.5,2593.4,0.48172]
[1646909977246,0.07026063,2593.5,2593.4,2.41044]
[1646909977446,0.75424648,2593.5,2593.4,2.41044]
[1646909978492,0.70707501,2593.5,2593.4,2.41044]
[1646909978695,0.75298839,2593.5,2593.4,2.41044]
[1646909980093,0.70707501,2593.5,2593.4,2.42461081]
[1646909980294,4.50707501,2593.5,2593.4,0.01417081]
[1646909980495,4.89137501,2593.5,2593.4,0.01417081]
[1646909980895,1.00707501,2593.5,2593.4,0.01417081]
[1646909981941,1.39137501,2593.5,2593.4,0.01417081]
[1646909982738,4.89137501,2593.5,2593.4,0.01417081]
[1646909984640,4.89137501,2593.5,2593.0,0.96466]
[1646909984641,1.41592443,2593.5,2593.0,0.96466]
[1646909984840,1.06432244,2593.2,2593.0,0.96466]
[1646909985038,0.68398585,2593.1,2593.0,0.96466]
[1646909986100,0.00295014,2593.2,2593.0,0.96466]
[1646909986700,1.91356377,2593.3,2593.0,0.96466]
[1646909986902,0.68723411,2593.2,2593.0,0.96466]
[1646909987702,0.68398585,2593.2,2593.0,0.96466]
[1646909987903,0.68398585,2593.2,2592.8,1.92928]
[1646909988103,0.68723411,2593.2,2592.8,1.92928]
[1646909989107,0.68398585,2593.2,2592.8,1.92928]
[1646909989303,0.68722347,2593.2,2592.8,1.92928]
[1646909989535,0.02440111,2593.1,2592.8,1.92928]
[1646909989737,0.68398585,2593.0,2592.8,0.22663709]
[1646909993990,3.54772742,2592.9,2592.6,1.92942]
[1646909994190,0.73978258,2592.8,2592.6,1.92942]
[1646909994393,0.74380978,2592.7,2592.3,1.92961]
[1646909994590,0.04982071,2592.5,2592.3,1.92961]
[1646909994990,0.04934188,2592.4,2592.3,1.92961]
[1646909995793,0.7488905,2592.4,2592.1,1.92974]
[1646909995993,0.04934188,2592.4,2592.1,1.92974]
[1646909996191,0.04934188,2592.4,2591.8,1.1616]
[1646909996393,0.04934188,2592.4,2591.9,0.87760332]
[1646909996792,0.69951821,2592.3,2591.9,0.96501]
[1646909997044,0.05465989,2592.2,2591.9,0.96501]
[1646909997439,0.05929175,2592.4,2591.9,0.96501]
[1646909997641,0.69946028,2592.3,2591.9,0.96501]
[1646909997844,0.04739191,2592.2,2591.9,0.96501]
[1646909998241,1.98070337,2592.4,2591.8,1.92993]
[1646909998441,0.75713713,2592.3,2591.8,1.92993]
[1646909998643,1.71833985,2592.2,2591.8,1.92993]
[1646909998842,0.05060239,2592.1,2591.8,1.92993]
[1646909999549,0.05421375,2592.3,2591.8,2.89497]
[1646909999743,0.37847204,2592.3,2591.8,2.89497]
[1646909999948,0.07847204,2592.3,2591.9,0.87938187]
[1646910000245,0.02425829,2592.3,2591.9,2.48278]
[1646910001086,0.02425829,2592.3,2592.0,0.96489]
[1646910001284,0.07107939,2592.3,2592.0,0.96489]
[1646910001488,1.02718755,2592.2,2592.0,0.96489]
[1646910001687,0.04952637,2592.1,2592.0,0.96489]
[1646910002292,0.35461002,2592.2,2592.0,0.96489]
[1646910002590,0.35461002,2592.2,2592.1,0.10490968]
[1646910002793,3.55461002,2592.2,2592.1,0.10490968]
[1646910003193,4.85801013,2592.2,2592.1,0.10490968]
[1646910003394,5.18770011,2592.2,2592.1,0.31876172]
[1646910005451,4.80340011,2592.2,2592.1,0.31876172]
[1646910006454,5.18770011,2592.2,2592.1,0.31876172]
[1646910008288,5.08770011,2592.2,2592.1,0.31876172]
[1646910008689,1.58770011,2592.2,2592.1,0.31876172]
[1646910009192,1.58770011,2592.2,2592.1,1.91112028]
[1646910009391,0.3843,2592.0,2591.6,0.01598405]
[1646910009590,3.8843,2591.9,2591.2,0.00238857]
[1646910009793,1.70108373,2591.1,2590.9,0.5]
[1646910010593,3.63225283,2591.1,2590.7,0.96548]
[1646910010790,1.70108373,2591.1,2590.6,2.75262916]
[1646910010994,1.70108373,2591.1,2590.9,0.00305258]
[1646910011191,2.00108373,2591.1,2590.9,0.00305258]
[1646910011393,3.5,2591.0,2590.9,0.00305258]
[1646910011596,4.31651493,2591.1,2590.9,0.00305258]
[1646910011795,3.5,2591.0,2590.9,0.00305258]
[1646910012044,1.02824478,2590.5,2590.3,0.00096]
[1646910012242,1.02824478,2590.5,2590.1,1.93115]
[1646910012243,2.29393128,2590.5,2590.1,1.93115]
[1646910012447,2.29393128,2590.5,2589.7,10.69466]
[1646910012643,3.5,2590.4,2589.7,9.4863]
[1646910012842,0.3,2590.4,2589.7,9.4863]
[1646910013043,3.8,2590.4,2589.7,9.4863]
[1646910013242,1.04722068,2590.0,2589.7,9.4863]
[1646910013443,0.9659884,2589.7,2589.5,0.09348872]
[1646910014249,0.9659884,2589.7,2589.5,0.64648872]
[1646910014445,0.9659884,2589.7,2589.5,0.63391523]
[1646910014847,2.8977894,2589.9,2589.5,0.63391523]
[1646910015049,3.1977894,2589.9,2589.5,0.63391523]
[1646910015547,3.1977894,2589.9,2589.5,0.553]
[1646910015548,1.31214599,2589.9,2589.5,0.553]
[1646910015787,1.99066123,2590.2,2589.5,0.553]
[1646910015993,0.05900703,2590.2,2589.5,0.553]
[1646910016191,0.35900703,2590.2,2589.5,0.553]
[1646910016395,0.05900703,2590.2,2589.5,0.553]
[1646910016793,0.05900703,2590.2,2589.7,1.07286954]
[1646910017093,0.05900703,2590.2,2589.8,0.96579]
[1646910017294,0.9657705,2590.1,2589.8,0.96579]
[1646910017495,1.2657705,2590.1,2589.8,0.96579]
[1646910018394,0.3,2590.1,2589.8,0.0031377]
[1646910018796,2.29060783,2590.2,2589.8,0.0031377]
[1646910019195,0.9658602,2589.8,2589.7,0.91788099]
[1646910019841,0.9658602,2589.8,2589.6,1.51886]
[1646910020041,2.8975595,2590.1,2589.6,1.51886]
[1646910020248,0.9658608,2589.8,2589.6,1.51886]
[1646910020647,1.2658608,2589.8,2589.6,0.55606962]
[1646910021452,1.2658608,2589.8,2589.6,0.553]
[1646910021850,1.2658608,2589.8,2589.6,0.55606962]
[1646910022050,0.3,2589.8,2589.6,0.55606962]
[1646910022453,0.9658124,2589.9,2589.6,0.55606962]
[1646910022454,1.2658124,2589.9,2589.6,0.55606962]
[1646910022855,1.2658124,2589.9,2589.6,0.553]
[1646910023050,1.2658124,2589.9,2589.6,0.55588586]
[1646910023288,0.9657425,2590.1,2589.6,0.55588586]
[1646910023491,0.08912252,2590.4,2589.7,0.08295941]
[1646910023689,0.3,2590.1,2589.8,1.51861]
[1646910023888,0.08912252,2590.4,2589.8,1.51861]
[1646910024490,0.08912252,2590.4,2589.9,1.06538847]
[1646910024890,0.08912252,2590.4,2590.0,0.553]
[1646910025089,0.08912252,2590.4,2590.1,0.96568]
[1646910025990,0.08912252,2590.4,2590.0,0.00291593]
[1646910026192,0.05454152,2590.3,2590.0,0.00291593]
[1646910026491,0.05454152,2590.3,2589.7,1.93121]
[1646910026690,0.9657929,2590.0,2589.7,1.93121]
[1646910026946,0.05454152,2590.3,2590.1,0.00292718]
[1646910027349,0.04366404,2590.4,2590.1,0.00292718]
[1646910027749,0.04366404,2590.4,2590.0,0.96569]
[1646910027949,0.04366404,2590.4,2590.1,0.00292894]
[1646910028749,0.04366404,2590.4,2590.1,1.04175914]
[1646910028949,0.04366404,2590.4,2590.1,1.0388302]
[1646910029150,0.04366404,2590.4,2590.1,1.04175912]
[1646910029752,0.04366404,2590.4,2589.8,0.52608912]
[1646910029951,0.04366404,2590.4,2590.0,1.1494537]
[1646910030154,0.04366404,2590.4,2590.0,1.23156871]
[1646910030353,0.04366404,2590.4,2590.0,1.1494537]
[1646910030552,2.94094744,2590.4,2590.0,1.1494537]
[1646910031188,1.97519744,2590.4,2590.0,2.1151637]
[1646910031389,1.97519744,2590.4,2590.0,2.6681637]
[1646910031586,1.97519744,2590.4,2590.0,2.66921485]
[1646910031788,1.97519744,2590.4,2590.0,1.70350485]
[1646910031990,3.05569898,2590.4,2590.0,1.70350485]
[1646910032191,3.05569898,2590.4,2590.0,0.55405115]
[1646910032408,3.05569898,2590.4,2590.0,0.553]
[1646910032791,1.97519744,2590.4,2590.0,1.51976115]
[1646910032991,0.04366404,2590.4,2590.0,1.51976115]
[1646910033193,0.04366404,2590.4,2590.2,0.07373045]
[1646910033400,0.04456126,2590.5,2590.4,0.00083054]
[1646910033592,0.04456126,2590.5,2590.4,0.55383054]
[1646910034294,1.01021696,2590.5,2590.4,0.55383054]
[1646910035542,1.01021696,2590.5,2590.4,0.00083054]
[1646910038793,1.05251767,2590.5,2590.4,0.00083054]
[1646910040397,1.05251767,2590.5,2590.4,0.55383054]
[1646910040398,0.08686197,2590.5,2590.4,0.55383054]
[1646910042246,0.00796484,2590.6,2590.4,0.55383054]
[1646910043045,0.9656771,2590.5,2590.4,0.55383054]
[1646910043849,0.9656771,2590.5,2590.4,0.54430866]
[1646910044247,0.04221091,2590.5,2590.4,0.54430866]
[1646910044648,0.04221091,2590.5,2590.4,0.53790143]
[1646910048199,0.82018222,2590.5,2590.4,0.53790143]
[1646910050240,1.78589642,2590.5,2590.3,0.01537703]
[1646910050442,0.77797131,2590.4,2590.3,0.01537703]
[1646910051241,0.04221091,2590.5,2590.3,1.94642703]
[1646910051442,0.04221091,2590.5,2590.3,2.49942703]
[1646910051644,0.7938996,2590.4,2590.3,2.49942703]
[1646910052044,0.7938996,2590.4,2590.3,0.56837703]
[1646910052244,1.66502779,2590.4,2590.3,0.56837703]
[1646910052645,5.16502779,2590.4,2590.3,0.01537703]
[1646910052845,5.87242947,2590.4,2590.3,0.01537703]
[1646910053290,5.86214449,2590.4,2590.3,0.01537703]
[1646910053493,0.70852158,2589.6,2589.3,3.21619247]
[1646910053692,0.70852158,2589.6,2589.4,0.02158452]
[1646910053891,0.70852158,2589.6,2589.4,0.02062452]
[1646910054293,1.00852158,2589.6,2589.4,0.02062452]
[1646910054492,3.5,2589.5,2589.4,0.02062452]
[1646910054791,1.97449818,2589.6,2589.4,0.02406494]
[1646910055290,3.54769717,2589.5,2589.4,0.02406494]
[1646910055492,3.54769717,2589.5,2589.4,0.02062452]
[1646910055493,0.04769717,2589.5,2589.4,0.02062452]
[1646910055690,0.04769717,2589.5,2589.4,0.02406494]
[1646910056498,2.94053818,2589.6,2589.4,0.02406494]
[1646910056700,2.94053818,2589.6,2589.4,0.02062452]
[1646910057146,1.97449818,2589.6,2589.4,0.02062452]
[1646910057346,1.00852158,2589.6,2589.4,0.02062452]
[1646910058051,1.00852158,2589.6,2589.4,0.02406781]
[1646910059144,1.00852158,2589.6,2589.4,0.02062452]
[1646910059347,1.00852158,2589.6,2589.4,0.02406781]
[1646910059550,1.00852158,2589.6,2589.4,0.57706781]
[1646910059746,0.0574593,2589.5,2589.4,0.57706781]
[1646910060347,1.07366631,2590.2,2589.4,0.57362452]
[1646910060551,0.70801336,2590.6,2589.7,6.917]
[1646910060800,0.1162444,2590.7,2590.1,0.01269147]
[1646910061103,0.1162444,2590.7,2590.3,0.08753942]
[1646910061404,0.1162444,2590.7,2590.5,0.96528]
[1646910061602,0.98160877,2590.9,2590.5,0.96528]
[1646910061603,0.29345883,2590.9,2590.6,0.6403086]
[1646910061803,1.00147219,2590.9,2590.6,0.62847149]
[1646910062001,1.00147219,2590.9,2590.6,0.553]
[1646910062404,0.70801336,2590.7,2590.6,0.553]
[1646910062601,0.70801336,2590.7,2590.3,0.553]
[1646910062801,0.70801336,2590.8,2590.4,0.08228682]
[1646910063204,0.29345883,2590.9,2590.5,0.553]
[1646910063205,1.00147219,2590.9,2590.5,0.553]
[1646910063803,0.29345883,2590.9,2590.5,0.553]
[1646910064003,0.29345883,2590.9,2590.6,0.96549]
[1646910064203,1.00147219,2590.9,2590.6,0.96549]
[1646910064437,0.29345883,2590.9,2590.6,0.96549]
[1646910064642,1.02962468,2591.0,2590.6,0.96549]
[1646910065244,0.91338028,2591.0,2590.6,0.96549]
[1646910066042,0.20536692,2591.0,2590.6,0.96549]
[1646910067849,0.91338028,2591.0,2590.6,0.96549]
[1646910068049,1.21150904,2590.7,2590.5,0.553]
[1646910068294,2.2195224,2590.7,2590.4,0.08228682]
[1646910068499,5.7195224,2590.7,2590.4,0.08228682]
[1646910069098,1.51150904,2590.7,2590.4,0.08228682]
[1646910071101,0.3,2590.7,2590.4,0.08228682]
[1646910071306,1.04674833,2590.9,2590.4,0.08228682]
[1646910071506,1.43104833,2590.9,2590.4,0.08228682]
[1646910071935,1.04674833,2590.9,2590.4,0.08228682]
[1646910072141,0.98398286,2590.8,2590.4,0.08228682]
[1646910072745,1.69199622,2590.8,2590.4,0.08228682]
[1646910072943,0.98398286,2590.8,2590.4,0.08228682]
[1646910073143,1.69199622,2590.8,2590.4,0.08228682]
[1646910073344,0.98398286,2590.8,2590.2,2.48412]
[1646910073544,0.84207985,2590.7,2590.2,2.38064949]
[1646910073745,0.03861426,2590.6,2590.5,0.0430505]
[1646910073945,0.03861426,2590.6,2590.5,1.0084905]
[1646910073946,0.88069411,2590.6,2590.5,1.0084905]
[1646910074245,0.88069411,2590.6,2590.5,2.9394205]
[1646910074443,0.88069411,2590.6,2590.5,1.9739805]
[1646910075446,0.88069411,2590.6,2590.5,0.0430505]
[1646910075889,0.99693851,2590.6,2590.5,0.0430505]
[1646910076994,1.04149977,2590.6,2590.5,0.0430505]
[1646910077898,1.15774417,2590.6,2590.5,0.0430505]
[1646910079095,1.20230543,2590.6,2590.5,0.0430505]
[1646910079296,1.20230543,2590.6,2590.5,1.0086205]
[1646910079542,1.20230543,2590.6,2590.5,1.5616205]
[1646910079942,1.24686669,2590.6,2590.5,1.5616205]
[1646910080343,1.24686669,2590.6,2590.5,4.5616205]
[1646910080842,1.24686669,2590.6,2590.5,5.74454738]
[1646910081043,1.29142795,2590.6,2590.5,5.74454738]
[1646910081245,1.29142795,2590.6,2590.5,4.5456267]
[1646910081643,1.29142795,2590.6,2590.5,3.5800567]
[1646910081944,1.29142795,2590.6,2590.5,3.0270567]
[1646910082147,1.40767235,2590.6,2590.5,3.0270567]
[1646910083053,1.52391675,2590.6,2590.5,3.0270567]
[1646910084093,1.56847801,2590.6,2590.5,3.9926267]
[1646910084295,1.56847801,2590.6,2590.5,3.96837444]
[1646910084697,1.56847801,2590.6,2590.5,3.00280444]
[1646910085298,1.68472241,2590.6,2590.5,3.00280444]
[1646910085705,5.89273577,2590.6,2590.5,3.00280444]
[1646910086301,6.00898017,2590.6,2590.5,0.02574774]
[1646910086940,1.80096681,2590.6,2590.5,0.02574774]
[1646910087345,1.84552807,2590.6,2590.5,0.02574774]
[1646910088146,2.5538946,2590.6,2590.5,0.02574774]
[1646910088449,2.59845586,2590.6,2590.5,0.02574774]
[1646910089446,2.71470026,2590.6,2590.5,0.02574774]
[1646910089646,2.00633373,2590.6,2590.5,0.02574774]
[1646910090248,2.01800469,2590.6,2590.4,3.0]
[1646910090555,0.84207985,2590.5,2590.4,3.553]
[1646910091008,0.84207985,2590.5,2590.4,4.28740625]
[1646910091406,0.84207985,2590.5,2590.4,1.28740625]
[1646910091606,0.84207985,2590.5,2590.4,0.553]
[1646910092206,1.71457987,2590.5,2590.4,0.553]
[1646910092406,1.71457987,2590.5,2590.4,3.553]
[1646910093513,1.71457987,2590.5,2590.4,1.84863651]
[1646910093906,1.70515503,2590.5,2590.4,1.84863651]
[1646910094106,1.73027237,2590.5,2590.2,4.41518]
[1646910094308,1.67419433,2590.4,2590.0,0.00345973]
[1646910094754,1.97419433,2590.4,2590.0,0.00345973]
[1646910095154,1.97419433,2590.4,2589.8,11.58]
[1646910095355,0.971302,2590.0,2589.8,11.58]
[1646910095857,1.271302,2590.0,2589.8,11.58]
[1646910096658,1.271302,2590.0,2589.8,11.58345954]
[1646910097060,1.31586326,2590.0,2589.8,11.58345954]
[1646910097263,4.81586326,2590.0,2589.8,11.58345954]
[1646910097467,3.55201827,2589.9,2589.8,0.00345954]
[1646910097762,3.55201827,2589.9,2589.4,0.02062452]
[1646910097962,3.55201827,2589.9,2589.8,0.00335574]
[1646910098205,4.51800597,2589.9,2589.8,0.00335574]
[1646910098394,0.05201827,2589.9,2589.8,0.00335574]
[1646910098602,0.46080566,2590.0,2589.8,0.00335574]
[1646910098799,0.46080566,2590.0,2589.7,0.553]
[1646910098999,0.50536692,2590.0,2589.7,0.553]
[1646910099199,0.50536692,2590.0,2589.7,0.55635577]
[1646910099601,0.20536692,2590.0,2589.8,0.96574]
[1646910099802,0.20536692,2590.0,2589.9,0.63852607]
[1646910100002,0.3442844,2590.0,2589.9,0.63852607]
[1646910101105,0.38884566,2590.0,2589.9,0.63852607]
[1646910102150,0.50509006,2590.0,2589.9,0.63852607]
[1646910102649,0.50509006,2590.0,2589.9,0.553]
[1646910102850,0.50509006,2590.0,2589.9,0.62937518]
[1646910103251,0.62133446,2590.0,2589.9,0.62937518]
[1646910104256,0.68757886,2590.0,2589.9,0.62937518]
[1646910104654,0.73305836,2590.0,2589.9,0.62937518]
[1646910105256,0.84930276,2590.0,2589.9,0.62937518]
[1646910106313,0.96554716,2590.0,2589.9,0.62937518]
[1646910107312,1.08179156,2590.0,2589.9,0.62937518]
[1646910108313,1.12635282,2590.0,2589.9,0.62937518]
[1646910109014,1.12635282,2590.0,2589.9,1.5282]
[1646910109447,1.24259722,2590.0,2589.9,1.5282]
[1646910109948,1.24828045,2590.0,2589.9,1.5282]
[1646910110550,1.29284171,2590.0,2589.9,1.5282]
[1646910112954,1.24828045,2590.0,2589.9,1.5282]
[1646910113690,1.25000896,2590.0,2589.9,1.5282]
[1646910113894,2.0848231,2590.0,2589.9,2.23302464]
[1646910114091,2.13089458,2590.0,2589.9,2.23302464]
[1646910114291,2.13089458,2590.0,2589.9,2.32027521]
[1646910114292,2.10813304,2590.0,2589.9,2.32027521]
[1646910114491,1.2733189,2590.0,2589.9,2.32027521]
[1646910114694,0.13692251,2590.5,2589.9,2.32027521]
[1646910114895,0.83511058,2590.4,2590.0,0.7493859]
[1646910115096,0.83511058,2590.4,2590.1,3.44944]
[1646910115296,0.83511058,2590.4,2590.2,0.95889128]
[1646910115498,0.83511058,2590.4,2590.3,1.31789078]
[1646910115699,0.83511058,2590.4,2590.3,0.553]
[1646910116197,0.83511058,2590.4,2590.3,2.28334522]
[1646910116401,0.83511058,2590.4,2590.3,1.51848]
[1646910116597,0.83511058,2590.4,2590.3,2.28336544]
[1646910116798,0.83511058,2590.4,2590.3,2.49482161]
[1646910117255,0.57014286,2590.6,2590.4,10.0]
[1646910117256,0.28679994,2590.6,2590.4,10.0]
[1646910117455,0.70836653,2590.9,2590.6,1.04923874]
[1646910117656,0.70836653,2590.9,2590.7,0.553]
[1646910117856,0.70836653,2591.0,2590.8,0.553]
[1646910118057,0.70836653,2591.0,2590.9,0.553]
[1646910118556,0.70836653,2591.0,2590.9,2.58318943]
[1646910119259,0.70836653,2591.2,2590.9,3.58318943]
[1646910119458,0.70836653,2591.3,2590.9,14.31318943]
[1646910119659,0.70836653,2591.4,2590.9,15.31318943]
[1646910119858,0.70836653,2591.5,2591.0,2.13568]
[1646910120058,0.70836653,2591.5,2591.1,0.553]
[1646910120262,0.94320223,2591.8,2591.4,1.90459798]
[1646910120459,0.06562987,2592.0,2591.5,0.553]
[1646910120460,1.0088321,2592.0,2591.5,0.553]
[1646910120709,0.94320223,2592.1,2591.5,0.553]
[1646910120904,0.79320223,2592.1,2591.5,0.553]
[1646910121100,0.00316488,2592.2,2591.5,12.283]
[1646910121101,0.79636711,2592.2,2591.5,12.283]
[1646910121304,0.79636711,2592.2,2591.8,0.93322201]
[1646910121505,0.00316488,2592.2,2591.9,0.553]
[1646910121702,0.05663257,2592.1,2591.4,1.92962]
[1646910121900,0.05663257,2592.1,2591.5,0.553]
[1646910122099,0.05663257,2592.1,2591.6,0.553]
[1646910122500,0.05663257,2592.1,2591.8,1.93014]
[1646910122702,1.03813598,2591.9,2591.8,1.93014]
[1646910123403,1.03813598,2591.9,2591.6,1.51806]
[1646910123404,4.92243598,2591.9,2591.6,0.96506]
[1646910123602,4.92243598,2591.9,2591.4,1.9304]
[1646910124004,4.92243598,2591.9,2591.6,0.03896484]
[1646910124443,0.9653124,2591.8,2591.6,0.03896484]
[1646910125348,1.72243598,2591.9,2591.6,0.03896484]
[1646910125551,0.6843,2591.9,2591.6,0.03896484]
[1646910126654,1.41480335,2592.4,2591.8,1.19487261]
[1646910126850,1.88964695,2592.6,2591.9,1.51791]
[1646910126851,0.00332516,2592.2,2591.9,1.51791]
[1646910127451,0.00332516,2592.2,2592.0,0.96505]
[1646910127652,0.00332516,2592.2,2592.1,0.553]
[1646910128052,4.91480335,2592.7,2592.2,0.96495]
[1646910128290,3.5,2592.7,2592.2,0.96495]
[1646910128590,1.41480335,2592.8,2592.2,0.96495]
[1646910128591,1.79910335,2592.8,2592.2,0.96495]
[1646910128789,1.79910335,2592.8,2592.2,1.51795]
[1646910128989,0.3843,2592.8,2592.2,1.51795]
[1646910129191,0.93498744,2592.6,2592.2,1.51795]
[1646910129990,0.94306605,2592.5,2592.2,1.51795]
[1646910130191,4.44306605,2592.5,2592.2,0.96495]
[1646910130493,4.44306605,2592.5,2592.0,1.9299]
[1646910130494,0.94725947,2592.1,2592.0,1.9299]
[1646910130692,1.65440256,2592.1,2592.0,1.9299]
[1646910131949,0.94725947,2592.1,2592.0,2.89485]
[1646910132155,0.94725947,2592.1,2592.0,3.44785]
[1646910132853,1.01443935,2592.1,2592.0,3.44785]
[1646910134056,1.01443935,2592.1,2592.0,3.48666927]
[1646910134057,1.05070662,2592.1,2592.0,3.48666927]
[1646910135059,0.98352674,2592.1,2592.0,3.48666927]
[1646910135703,0.98352674,2592.1,2592.0,3.48025228]
[1646910137098,0.98352674,2592.1,2592.0,3.47082743]
[1646910137298,1.73896471,2592.1,2592.0,3.47082743]
[1646910137798,1.73896471,2592.1,2592.0,3.70078529]
[1646910138000,1.73896471,2592.1,2592.0,2.70078529]
[1646910138198,1.73896471,2592.1,2592.0,3.70078529]
[1646910138402,1.73896471,2592.1,2592.0,2.70078529]
[1646910138600,1.73896471,2592.1,2592.0,3.70078529]
[1646910139002,1.73896471,2592.1,2592.0,3.90078529]
[1646910141247,0.98352674,2592.1,2592.0,3.90078529]
[1646910141447,0.78352674,2592.1,2592.0,3.70078529]
[1646910142450,0.78352674,2592.1,2592.0,2.76736048]
[1646910142749,0.78352674,2592.1,2592.0,1.76736048]
[1646910147859,1.50249783,2592.1,2592.0,1.76736048]
[1646910155341,0.05553568,2592.5,2592.0,1.76736048]
[1646910155541,0.00324746,2592.2,2592.1,2.89401]
[1646910155747,0.00324746,2592.2,2592.1,4.44701]
[1646910155946,0.05553568,2592.5,2592.2,0.96467]
[1646910156145,0.05553568,2592.5,2592.3,1.5176469]
[1646910156346,0.77462875,2592.7,2592.4,0.96465]
[1646910156547,0.06307227,2592.6,2592.5,0.553]
[1646910157348,0.77021536,2592.6,2592.5,0.553]
[1646910157746,0.77021536,2592.6,2592.4,0.77911306]
[1646910157947,0.06307227,2592.6,2592.5,0.553]
[1646910158595,0.77021536,2592.6,2592.5,0.553]
[1646910158995,0.06307227,2592.6,2592.5,0.553]
[1646910160396,0.77021536,2592.6,2592.5,0.553]
[1646910162551,0.06307227,2592.6,2592.5,0.553]
[1646910163553,2.12202034,2592.6,2592.5,0.553]
[1646910163951,1.17895429,2592.6,2592.5,0.553]
[1646910164151,2.12202034,2592.6,2592.5,0.553]
[1646910164854,2.12202034,2592.6,2592.5,0.5915251]
[1646910165054,0.0619614,2592.5,2592.3,3.85864]
[1646910165252,0.94798023,2592.4,2592.3,3.85864]
[1646910165455,0.94798023,2592.4,2592.0,3.11224]
[1646910165704,0.71097277,2592.2,2592.0,3.85982]
[1646910167103,0.71097277,2592.1,2592.0,3.85982]
[1646910168306,0.71097277,2592.2,2592.0,3.85982]
[1646910168606,0.71097277,2592.2,2592.0,4.41282]
[1646910169206,0.71420364,2592.3,2592.0,6.4459059]
[1646910169448,0.00323087,2592.3,2592.1,0.96489]
[1646910169648,0.00323087,2592.3,2592.2,0.553]
[1646910169848,0.71097277,2592.5,2592.3,0.9646217]
[1646910170048,0.71097277,2592.5,2592.4,0.553]
[1646910170652,0.71097277,2592.5,2592.4,1.49873378]
[1646910171249,0.71097277,2592.5,2592.4,2.46336378]
[1646910171651,0.71097277,2592.5,2592.4,1.51763]
[1646910172956,0.71097277,2592.5,2592.4,2.41764615]
[1646910174802,0.76003818,2592.5,2592.4,2.41764615]
[1646910176003,1.39307751,2592.5,2592.4,2.41764615]
[1646910176503,0.68210474,2592.5,2592.4,2.41764615]
[1646910176948,0.68210474,2592.5,2592.4,1.45301615]
[1646910177755,0.68210474,2592.5,2592.3,6.64349268]
[1646910177955,0.04906541,2592.5,2592.4,0.553]
[1646910178155,0.76099713,2592.5,2592.4,0.553]
[1646910178559,0.59761029,2592.5,2592.4,0.553]
[1646910178858,0.94798023,2592.8,2592.6,1.92902]
[1646910179057,0.94798023,2592.8,2592.7,0.553]
[1646910179257,1.53230502,2592.8,2592.7,0.553]
[1646910179457,1.01464203,2592.8,2592.7,0.553]
[1646910179662,1.59896682,2592.8,2592.7,0.553]
[1646910180459,0.65098659,2592.8,2592.7,0.553]
[1646910180711,0.65098659,2592.8,2592.6,2.89353]
[1646910180712,0.65098659,2592.8,2592.6,1.92902]
[1646910180900,0.00219518,2592.9,2592.6,1.92902]
[1646910180901,0.64361695,2592.7,2592.6,1.92902]
[1646910181097,0.58432479,2592.7,2592.6,1.92902]
[1646910181499,2.62548288,2592.8,2592.6,1.92902]
[1646910181699,2.62548288,2592.8,2592.2,1.2127]
[1646910181700,5.49912814,2592.7,2592.3,0.96494]
[1646910181898,0.94907111,2592.5,2592.3,0.96494]
[1646910182301,1.5333959,2592.4,2592.3,0.96494]
[1646910182702,0.94907111,2592.4,2592.3,0.96494]
[1646910183102,1.99912814,2592.6,2592.3,0.96494]
[1646910183508,0.94921624,2592.4,2592.3,1.92982]
[1646910183803,1.99912814,2592.6,2592.3,1.92982]
[1646910184004,0.94925493,2592.4,2592.3,2.48282]
[1646910184647,1.53357972,2592.4,2592.3,2.48282]
[1646910184949,0.94925493,2592.4,2592.3,2.48282]
[1646910188397,1.53357972,2592.4,2592.3,1.51788]
[1646910188997,0.94925493,2592.4,2592.3,1.51788]
[1646910189198,0.94925493,2592.4,2592.3,1.55482988]
[1646910189598,1.53357972,2592.4,2592.3,1.55482988]
[1646910189801,0.94925493,2592.4,2592.3,1.55482988]
[1646910192449,0.94925493,2592.5,2592.3,1.55482988]
[1646910192848,1.53357972,2592.5,2592.3,1.55482988]
[1646910193049,0.58432479,2592.4,2592.3,1.55482988]
[1646910193449,0.94925493,2592.5,2592.3,1.55482988]
[1646910193954,0.94925493,2592.6,2592.3,1.55482988]
[1646910194151,0.94925493,2592.5,2592.3,1.55482988]
[1646910194752,0.94925493,2592.5,2592.3,1.5640855]
[1646910194955,0.58432479,2592.5,2592.3,1.5640855]
[1646910195154,1.29675577,2592.4,2592.3,1.5640855]
[1646910195553,0.58432479,2592.4,2592.3,1.5640855]
[1646910195796,0.94925493,2592.6,2592.3,1.5640855]
[1646910197803,0.94925493,2592.6,2592.4,0.553]
[1646910198005,0.94925493,2592.6,2592.5,0.553]
[1646910198204,1.53357972,2592.6,2592.5,0.553]
[1646910198405,1.53357972,2592.6,2592.5,1.51777]
[1646910200048,0.58432479,2592.6,2592.5,1.51777]
[1646910200447,1.53357972,2592.6,2592.5,1.51777]
[1646910201052,1.5360597,2592.6,2592.5,1.51777]
[1646910201349,1.60109989,2592.6,2592.5,1.51777]
[1646910202051,0.64936498,2592.6,2592.5,1.51777]
[1646910202855,2.06416833,2592.6,2592.3,0.04618735]
[1646910203207,0.95208046,2592.4,2592.3,0.04618735]
[1646910203399,0.58432479,2592.4,2592.3,0.04618735]
[1646910203998,0.95212228,2592.4,2592.3,0.04618735]
[1646910204198,1.53644707,2592.4,2592.3,0.04618735]
[1646910204599,1.53644707,2592.4,2592.1,2.48273]
[1646910204799,0.71421059,2592.2,2592.1,2.48273]
[1646910204999,0.57523999,2592.2,2592.1,2.48273]
[1646910205600,0.95212228,2592.4,2592.1,2.48273]
[1646910206601,0.7141845,2592.2,2592.1,2.48273]
[1646910206802,0.7141845,2592.2,2592.1,3.49863154]
[1646910207452,1.28942449,2592.2,2592.1,3.49863154]
[1646910207850,0.7141845,2592.2,2592.1,3.49863154]
[1646910208250,1.28942449,2592.2,2592.1,3.49863154]
[1646910208452,0.57523999,2592.2,2592.1,3.49863154]
[1646910208650,0.57523999,2592.2,2592.1,4.49863154]
[1646910208850,0.7141845,2592.3,2592.1,16.22863154]
[1646910209053,0.7141845,2592.3,2592.1,15.21273]